[Event "2nd Memorial Petro Katsan 2023"]
[Site "Chernonograd"]
[Date "2023.01.22"]
[Round "8"]
[White "Kutsyk, Roman"]
[Black "Kozak, Dmytro"]
[Result "1-0"]
[ECO "D00"]
[WhiteElo "1456"]
[BlackElo "1937"]
[Annotator "TA"]
[PlyCount "115"]
[EventDate "2023.01.24"]
[EventRounds "9"]
[EventCountry "UKR"]
[SourceTitle "playchess.com"]
[Source "ChessBase"]
[SourceQuality "1"]
[TimeControl "600+5"]

{[%evp 9,115,55,54,54,388,376,372,385,384,382,393,386,502,496,533,515,548,461,574,575,635,638,620,633,611,602,677,605,630,614,675,643,641,630,613,505,533,537,541,536,578,581,583,586,564,550,548,508,569,563,583,575,565,498,612,594,674,645,715,627,730,714,813,800,718,703,847,732,709,673,762,742,749,743,726,677,675,644,702,685,875,864,1033,1004,1085,1075,1069,1069,1935,1341,29998,2692,29980,29981,29986,29987,29987,29988,29988,29989,29989,29990,29990,29991,29992,29991,29991,29992]} 1. d4 d5 2. Bf4 e6 3. e3 Bd6 4. Qg4 Qf6 5. Bxd6 cxd6 6. Nc3 {[#] Hoping for Nxd5. D00: 1 d4 d5: Unusual lines.} a6 $2 {[%mdl 8192]} (6... Qg6 $14 7. Qd1 Nc6) 7. Nxd5 $18 exd5 8. Qxc8+ {White is winning.} Qd8 {[#]} 9. Qxb7 $146 ({Predecessor:} 9. Qxd8+ Kxd8 10. Nf3 Nc6 11. c3 Nf6 12. Bd3 Ne4 13. Bxe4 dxe4 14. Ng5 Ke7 15. Nxe4 {1-0 Adewumi,T (1730)-Miranda Fernandez,M (1243) Wch FIDE Online U10 America qual rapid 2020 (2)}) 9... Nd7 10. Qxd5 Ngf6 11. Qxd6 Rb8 12. Qa3 {Against Qa5+} ({Weaker is} 12. Bxa6 Qa5+ 13. Ke2 Ne4 $11) 12... Qc7 13. Bd3 ({Not} 13. Bxa6 Ra8 14. Nf3 Qb6 $16) 13... a5 14. Nf3 h6 15. O-O Nd5 16. c3 {Against Nb4} Ne7 17. e4 {[%cal Be3e4,Be4e5][%mdl 32]} Nf6 18. Qa4+ Kf8 19. Qa3 g6 20. e5 Nfd5 21. Be4 Kg7 22. Qd6 Rhd8 23. Qxc7 Nxc7 24. Rab1 Rb6 25. Nd2 {[%cal Bf3d2,Bd2c4,Bc4e3][%mdl 32]} Ncd5 26. Nc4 {[%csl LRa5,LRb6]} Ra6 27. Bxd5 Nxd5 28. a4 Nf4 29. Rfe1 Rb8 30. g3 Nd5 31. Ne3 Nb6 32. b3 Rc8 33. c4 Ra7 34. d5 Rd7 35. Ng4 h5 36. Nf6 Rdd8 37. Ne4 Rc7 38. Nd6 Nd7 39. Nb5 Rb7 40. e6 fxe6 41. Rxe6 Nc5 42. Re3 Rf7 43. Rbe1 Kh6 44. f4 Na6 45. Re7 Rff8 46. Ra7 Nc5 47. Ree7 {[%csl Ga7][%cal Re7h7] [#]} Rh8 {Against Rh7+} 48. Nd4 {Nf3 would be deadly.} Rb8 49. d6 {[%cal Bd5d6,Bd6d7][%mdl 32] Black must now prevent Nf3.} Nxb3 50. Nxb3 (50. Nf5+ $142 gxf5 51. Re6#) 50... Rxb3 {[%mdl 4096] Endgame KRR-KRR} 51. d7 {White mates.} Rd3 52. c5 {[%cal Bc4c5,Bc5c6][%mdl 32]} Rd8 53. c6 Rd1+ 54. Kf2 Rd2+ 55. Ke3 Rd1 56. Ke2 Rc1 57. Re8 Rc2+ 58. Kd3 {White took control after the opening.   Weighted Error Value: White=0.10 (very precise) /Black=0.83} 1-0

[Event "2nd Memorial Petro Katsan 2023"]
[Site "Chernonograd"]
[Date "2023.01.22"]
[Round "8"]
[White "Katsan, Danylo"]
[Black "Hychkevych, Vitaliy"]
[Result "1-0"]
[ECO "D02"]
[WhiteElo "1447"]
[BlackElo "1251"]
[Annotator "NA RC COMBH"]
[PlyCount "113"]
[EventDate "2023.01.24"]
[EventRounds "9"]
[EventCountry "UKR"]
[SourceTitle "playchess.com"]
[Source "ChessBase"]
[SourceQuality "1"]
[TimeControl "600+5"]

1. Nf3 d5 2. d4 Nf6 3. Bf4 g6 4. e3 Bg7 5. c3 O-O 6. h3 a6 7. a4 b6 8. Nbd2 Bb7 9. Be2 Nbd7 10. O-O c5 11. Bh2 c4 12. Ne5 Rc8 13. f3 Nxe5 14. Bxe5 Bh6 15. Bxf6 Bxe3+ 16. Kh1 exf6 17. Nb1 Bh6 18. f4 b5 19. axb5 axb5 20. f5 Qb6 21. Bg4 Ra8 22. Rxa8 Rxa8 23. Qe1 g5 24. h4 Qc6 25. Na3 Re8 26. Qd2 Re4 27. hxg5 Bxg5 28. Qd1 Qd6 29. Nc2 Qg3 30. Bh3 Bf4 31. Qg4+ Qxg4 32. Bxg4 Bg5 33. Bf3 Rf4 34. Be2 Rh4+ 35. Kg1 Bf4 36. Bf3 Bc8 37. Bxd5 Bxf5 38. g3 Rh5 39. Rxf4 Bxc2 40. Bc6 Kg7 41. d5 f5 42. Bxb5 Be4 43. Bxc4 Rh1+ 44. Kf2 Rh2+ 45. Ke3 Rxb2 46. g4 Rc2 47. gxf5 Rxc3+ 48. Kd4 Rh3 49. Kxe4 h5 50. d6 Kf6 51. Kd5 Rh1 52. d7 Ke7 53. Kc6 Rd1 54. Re4+ Kf6 55. Bd5 Rc1+ 56. Rc4 Rxc4+ 57. Bxc4 1-0

[Event "2nd Memorial Petro Katsan 2023"]
[Site "Chernonograd"]
[Date "2023.01.22"]
[Round "8"]
[White "Gavker, Markiyan"]
[Black "Karpinets, Andrian"]
[Result "0-1"]
[ECO "B32"]
[WhiteElo "1310"]
[BlackElo "1370"]
[Annotator "NA RC COMBH"]
[PlyCount "90"]
[EventDate "2023.01.24"]
[EventRounds "9"]
[EventCountry "UKR"]
[SourceTitle "playchess.com"]
[Source "ChessBase"]
[SourceQuality "1"]
[TimeControl "600+5"]

1. e4 c5 2. Nf3 Nc6 3. d4 cxd4 4. Nxd4 e5 5. Nb3 Nf6 6. Nc3 Bb4 7. Bd3 d5 8. exd5 Nxd5 9. Bd2 Nxc3 10. bxc3 Be7 11. O-O O-O 12. f4 a5 13. a4 Be6 14. Be3 exf4 15. Bxf4 Bf6 16. Qd2 Qd5 17. Rad1 Qh5 18. Be2 Bg4 19. Bxg4 Qxg4 20. Nd4 Rad8 21. Qf2 Nxd4 22. cxd4 Rfe8 23. c3 Re2 24. Qf3 Qxf3 25. Rxf3 Rc8 26. Ra1 Rc2 27. Ra3 R2xc3 28. Be5 Rxa3 29. Rxa3 Bxe5 30. dxe5 Kf8 31. Kf2 Ke7 32. Rb3 Rc4 33. Rxb7+ Ke6 34. Ra7 Rxa4 35. h3 Ra3 36. Ke2 Ra1 37. Kf2 a4 38. Ra5 a3 39. g4 h6 40. Kg2 Ra2+ 41. Kg3 Ra1 42. Kg2 h5 43. gxh5 a2 44. h4 Kf5 45. Ra4 Kxe5 0-1

[Event "2nd Memorial Petro Katsan 2023"]
[Site "Chernonograd"]
[Date "2023.01.22"]
[Round "8"]
[White "Tsikh, Vladyslav"]
[Black "Tyurin, Rostyslav"]
[Result "0-1"]
[ECO "C25"]
[WhiteElo "1245"]
[BlackElo "1262"]
[Annotator "NA RC COMBH"]
[PlyCount "96"]
[EventDate "2023.01.24"]
[EventRounds "9"]
[EventCountry "UKR"]
[SourceTitle "playchess.com"]
[Source "ChessBase"]
[SourceQuality "1"]
[TimeControl "600+5"]

1. e4 e5 2. Nc3 Nc6 3. f4 d6 4. Nf3 Bg4 5. Bb5 a6 6. Bxc6+ bxc6 7. fxe5 dxe5 8. d3 Nf6 9. O-O Be7 10. Be3 O-O 11. Qd2 Bxf3 12. Rxf3 Ng4 13. Rff1 Nxe3 14. Qxe3 Rb8 15. b3 Bb4 16. Ne2 h6 17. Kh1 Qg5 18. Qxg5 hxg5 19. Ng3 f6 20. Nf5 g6 21. Ne3 Kg7 22. Nc4 Rh8 23. Rf3 Rh4 24. Raf1 Rf4 25. g3 Rxf3 26. Rxf3 Rh8 27. Kg2 Bc3 28. Rf1 Bb4 29. Rf3 Rf8 30. Rf1 Rb8 31. a4 Bc3 32. Rf3 Rf8 33. Rf1 f5 34. exf5 gxf5 35. Ne3 f4 36. gxf4 exf4 37. Nc4 Re8 38. Kf3 Kg6 39. Rf2 Kf5 40. Rg2 Re1 41. Rf2 Re8 42. h3 Rh8 43. Kg2 Re8 44. Kf3 Re1 45. Kg2 Bd4 46. Rf1 Re2+ 47. Kf3 Rxc2 48. Re1 Rf2# 0-1

[Event "2nd Memorial Petro Katsan 2023"]
[Site "Chernonograd"]
[Date "2023.01.22"]
[Round "9"]
[White "Koptsiukh, Vladimir"]
[Black "Gavker, Markiyan"]
[Result "0-1"]
[ECO "B22"]
[WhiteElo "2021"]
[BlackElo "1310"]
[Annotator "TA"]
[PlyCount "88"]
[EventDate "2023.01.24"]
[EventRounds "9"]
[EventCountry "UKR"]
[SourceTitle "playchess.com"]
[Source "ChessBase"]
[SourceQuality "1"]
[TimeControl "600+5"]

{[%evp 9,88,72,72,80,52,42,68,69,150,133,154,127,151,113,160,161,455,258,247,169,335,339,390,383,412,263,312,260,267,252,302,88,149,-279,-264,-444,-445,-440,-427,-437,-439,-426,-286,-687,-684,-643,-654,-637,-635,-601,-580,-552,-490,-589,-518,-641,-653,-671,-632,-700,-704,-1096,-1068,-1085,-1035,-1399,-1441,-2172,-2035,-29982,-29983,-29969,-4789,-29985,-29986,-29986,-29987,-29987,-29988,-29988,-29989]} 1. e4 c5 2. c3 e5 3. Nf3 Nc6 4. Bc4 h6 5. d4 exd4 6. cxd4 {B22: Sicilian: 2 c3.} cxd4 7. Nxd4 {And now Nc3 would win.} Bb4+ 8. Nc3 {Threatens to win with 0-0. White is slightly better.} Bxc3+ ({Black should try} 8... Nge7 $14) 9. bxc3 $16 {[#] aiming for Nb5.} Nge7 $146 ({Predecessor:} 9... Nxd4 10. Qxd4 f6 11. Ba3 Qe7 12. Bxe7 Nxe7 13. e5 {1-0 Kuprasz,B (1339)-Voigt,J (1234) DSOL 07 Liga Gr-B 1st rapid 2020 (5.3)}) 10. O-O $40 {[%mdl 128] White is out for blood.} O-O 11. Nb5 Ne5 (11... d5 $142 12. Bxd5 (12. exd5 Na5 $16) 12... a6) 12. Bb3 {A strong pair of Bishops.} b6 $2 (12... d5 {was worth a try.} 13. exd5 (13. Bxd5 a6 $14) 13... a6) 13. Nd6 (13. f4 $142) 13... Ba6 $18 14. Re1 {[%cal Bf1e1,Be1e3,Be3g3][%mdl 32] Qh5 is the strong threat.} Nd3 $2 (14... N7g6 15. g3 Qe7) 15. Re3 Nxc1 16. Rxc1 (16. Qxc1 Qc7 $18) 16... Ng6 17. Rg3 Kh7 18. Qg4 {Against Nf4} (18. Bxf7 Nf4 $16) 18... Qf6 19. Rd1 ({Not} 19. Qxd7 Nf4 20. Bd1 (20. Bxf7 $2 {loses.} Rad8 $19) 20... g6 $11) 19... Rad8 {[#]} 20. f4 $2 Nxf4 (20... Qxf4 $142 21. Qf5 Qxf5 22. exf5 Ne5) 21. Kh1 $2 {[%mdl 8192] This costs White the game.} (21. Rf3 $16 g5 22. Rd2) 21... Be2 $19 22. Qf5+ (22. e5 {was the only chance.} Qxe5 23. Re1) 22... Qxf5 23. Nxf5 Bxd1 ({But not} 23... g6 $2 24. Nd6 Bxd1 25. Bxd1 $19) 24. Rxg7+ Kh8 25. Bxd1 d5 26. e5 (26. Rg4 dxe4 {[%mdl 64] Discovered Attack} 27. Bb3) 26... Rde8 27. Rg3 Rxe5 {[%cal Re5e1]} 28. Ne3 Rfe8 29. Nf1 Ne2 30. Rf3 Kg7 {[%cal Oe2c3]} 31. Bb3 Nc1 32. Bc2 Nxa2 33. Kg1 Nc1 34. Ng3 Re1+ 35. Kf2 {[#]} R8e2+ $1 36. Nxe2 Rxe2+ 37. Kg3 Rxc2 {[%mdl 4096] Endgame KRN-KR} 38. Re3 a5 {[%cal Ba7a5,Ba5a4,Ba4a3][%mdl 32] ...a4 would be deadly.} 39. Re5 Rxc3+ 40. Kh4 Rc4+ (40... a4 $142 41. Kg4 a3 42. Re8 a2 43. Ra8 Rc5 44. Kf5 Ra5 45. Rxa5 bxa5 46. Ke5 a1=Q+ 47. Kxd5 Qa2+ 48. Kc5 a4 49. g4 Qe6 50. h3 a3 51. h4 a2 52. g5 Nd3+ 53. Kd4 a1=Q+ 54. Kxd3 Qd1+ 55. Kc3 Qeb3#) 41. g4 a4 {Black mates.} 42. Rxd5 a3 43. Rd8 b5 44. Ra8 Ra4 {Weighted Error Value: White=1.09/Black=0.50} 0-1

[Event "2nd Memorial Petro Katsan 2023"]
[Site "Chernonograd"]
[Date "2023.01.22"]
[Round "9"]
[White "Kozak, Dmytro"]
[Black "Hychkevych, Vitaliy"]
[Result "0-1"]
[ECO "B24"]
[WhiteElo "1937"]
[BlackElo "1251"]
[Annotator "TA"]
[PlyCount "82"]
[EventDate "2023.01.24"]
[EventRounds "9"]
[EventCountry "UKR"]
[SourceTitle "playchess.com"]
[Source "ChessBase"]
[SourceQuality "1"]
[TimeControl "600+5"]

{[%evp 15,82,-6,4,0,0,0,0,-13,0,0,55,-23,61,14,49,11,20,21,145,148,141,71,69,31,38,36,28,18,75,93,70,8,0,12,43,69,84,93,71,0,73,58,203,208,301,292,729,0,175,208,1595,0,29995,-29985,-29986,-29985,-29986,-29986,-29986,-29986,-29987,-29988,-29989,-29989,-29990,-29990,-29991,-29991,-29992]} 1. e4 c5 2. Nc3 e6 3. g3 Nc6 4. Bg2 d6 5. Nge2 Be7 6. O-O Nf6 7. d3 {7.d3 is better than 7.d4.} O-O 8. h3 Rb8 9. f4 {B24: Closed Sicilian: 3 g3 sidelines.} Bd7 10. g4 b5 {[%cal Bb7b5,Bb5b4][%mdl 32]} 11. Ng3 {The position is equal.} b4 12. Nce2 {[#]} Qb6 $146 (12... h6 $11) ({Predecessor:} 12... Ne8 13. g5 g6 14. Be3 f5 15. exf5 gxf5 16. d4 Nc7 17. dxc5 dxc5 18. Qd2 Be8 {1-0 Mezentsev,I (2354)-Pichot,A (2606) Titled Tuesday intern op 4th Febr blitz 2020 (7)}) 13. Kh1 (13. g5 $14) 13... Nd4 (13... h6 $11) 14. Be3 (14. g5 $14 Ne8 15. Nxd4 cxd4 16. f5) 14... Rbc8 15. f5 Nxe2 16. Qxe2 Qc7 (16... h6 $11) 17. g5 $16 Ne8 {[%cal Od6d5]} 18. Rf2 (18. f6 $142 gxf6 19. gxf6 Bxf6 20. Nh5) 18... d5 19. Nh5 {f6 would be deadly.} (19. Bf4 $5 {[%cal Rf4c7]} e5 20. Bd2 $14) 19... g6 {[%cal Re6f5]} 20. f6 Bd6 21. Nf4 d4 (21... dxe4 $11 22. dxe4 (22. Bxe4 Be5 $17) 22... c4) 22. Bd2 c4 23. Re1 (23. dxc4 $14 Qxc4 24. e5 Qxe2 25. Rxe2) 23... c3 $11 24. bxc3 bxc3 25. Bc1 {Hoping for e5.} Qa5 26. e5 Bb8 27. Qg4 (27. Qe4 $16) 27... Bxe5 (27... Qxa2 $2 28. Nd5 exd5 29. Qxd7 $18) (27... Rc5 $1 $11 {remains equal.}) 28. Qh4 $1 $16 ({Much worse is} 28. Nd5 exd5 29. Qxd7 Bg3 30. Qxc8 (30. Qxd5 $2 {is the wrong capture.} Qxd5 31. Bxd5 Bxf2 $19) 30... Nc7 $11) 28... Bc6 ({Black should play} 28... Bxf4 $1 $14 29. Bxf4 h5) 29. Qh6 $18 {[%cal Oe1e5] And now Rxe5! would win.} Bxg2+ (29... Bxf6 $142 30. gxf6 Nxf6) 30. Nxg2 {[%cal Oe1e5] Black must now prevent Rxe5!} ({Less strong is} 30. Rxg2 Rc5 $14) 30... Bg3 {[#]} (30... Bxf6 31. gxf6 Rc5) 31. Rfe2 $2 Bxe1 (31... Qxa2 $2 32. Re4 Qa6 33. Rg1 $18) (31... Rc5 $1 $11 {and Black stays safe.}) 32. Rxe1 Qxa2 $2 {[#]} (32... Rb8) 33. Re4 $2 (33. Kh2 $1 $18 {White wants to mate with Re4.} Qb2 34. Bxb2 cxb2 35. Re4) 33... Qxc2 $4 {[%mdl 8192] [#]} (33... Qa1 $11 34. Re1 Rc6) 34. Rh4 $4 {[%mdl 8192]} Qxc1+ {Black mates.} 35. Kh2 {[#]} Nxf6 $1 36. Nf4 {[#]} Nh5 $1 37. Nxh5 gxh5 38. Qxh5 Qd2+ 39. Kh1 Qxd3 40. g6 Qxg6 41. Rg4 c2 {Weighted Error Value: White=0.69/Black=0.52} 0-1

[Event "2nd Memorial Petro Katsan 2023"]
[Site "Chernonograd"]
[Date "2023.01.22"]
[Round "9"]
[White "Tsertsvadze, Anatoliy"]
[Black "Soroka, Denys"]
[Result "0-1"]
[ECO "D02"]
[WhiteElo "1733"]
[BlackElo "1624"]
[Annotator "NA RC COMBH"]
[PlyCount "112"]
[EventDate "2023.01.24"]
[EventRounds "9"]
[EventCountry "UKR"]
[SourceTitle "playchess.com"]
[Source "ChessBase"]
[SourceQuality "1"]
[TimeControl "600+5"]

1. d4 d5 2. Nf3 Nc6 3. Bf4 Bf5 4. e3 e6 5. c3 Bd6 6. Bg3 Nf6 7. Nbd2 O-O 8. Ne5 Bxe5 9. dxe5 Nd7 10. f4 f6 11. exf6 Nxf6 12. Be2 Qe8 13. Qb3 Rb8 14. O-O Qg6 15. Rae1 Ne4 16. Nxe4 Bxe4 17. Bf3 Ne7 18. Qb4 Bxf3 19. Rxf3 Nc6 20. Qa4 a6 21. f5 Rxf5 22. Rxf5 Qxf5 23. Bxc7 Rf8 24. Qf4 Qc2 25. Qg3 Qxb2 26. Bd6 Rf6 27. h3 Qxc3 28. a3 e5 29. Bb4 Nxb4 30. axb4 Qxb4 31. Rc1 Qe7 32. Qg4 Rf8 33. Rc8 Rxc8 34. Qxc8+ Kf7 35. Qf5+ Qf6 36. Qd7+ Kg6 37. Qxb7 Qd6 38. Qb1+ Kh6 39. g4 Qc5 40. Kf2 d4 41. Qf5 dxe3+ 42. Kg3 g6 43. g5+ Kg7 44. Qf6+ Kg8 45. Qd8+ Kf7 46. Qf6+ Kg8 47. Qe6+ Kf8 48. Qf6+ Ke8 49. Qh8+ Qf8 50. Qxe5+ Qe7 51. Qh8+ Kd7 52. Qa8 e2 53. Qb7+ Ke8 54. Qa8+ Kf7 55. Qd5+ Kf8 56. Qa8+ Kg7 0-1

[Event "2nd Memorial Petro Katsan 2023"]
[Site "Chernonograd"]
[Date "2023.01.22"]
[Round "9"]
[White "Tymchyshyn, Volodymyr"]
[Black "Kutyra, Myroslav"]
[Result "1-0"]
[ECO "B12"]
[WhiteElo "1267"]
[BlackElo "1764"]
[Annotator "NA RC COMBH"]
[PlyCount "59"]
[EventDate "2023.01.24"]
[EventRounds "9"]
[EventCountry "UKR"]
[SourceTitle "playchess.com"]
[Source "ChessBase"]
[SourceQuality "1"]
[TimeControl "600+5"]

1. e4 c6 2. d4 d5 3. e5 Bf5 4. c4 e6 5. Nc3 Nd7 6. a3 dxc4 7. Bxc4 Nb6 8. Be2 Ne7 9. h4 Ned5 10. Nxd5 exd5 11. Bg4 Qd7 12. Bxf5 Qxf5 13. Nf3 h6 14. Qe2 Be7 15. Bd2 O-O 16. Rc1 Rfe8 17. O-O Nd7 18. Qe3 Nf8 19. Qf4 Qh5 20. g4 Qg6 21. h5 Qh7 22. Qg3 Ne6 23. Be3 a5 24. Nh2 Bg5 25. f4 Bd8 26. Nf3 Qd3 27. Rfe1 Bb6 28. Rcd1 Qc4 29. f5 Nf8 30. f6 1-0

[Event "2nd Memorial Petro Katsan 2023"]
[Site "Chernonograd"]
[Date "2023.01.22"]
[Round "9"]
[White "Tyurin, Rostyslav"]
[Black "Katsan, Danylo"]
[Result "1/2-1/2"]
[ECO "B86"]
[WhiteElo "1262"]
[BlackElo "1447"]
[Annotator "NA RC COMBH"]
[PlyCount "58"]
[EventDate "2023.01.24"]
[EventRounds "9"]
[EventCountry "UKR"]
[SourceTitle "playchess.com"]
[Source "ChessBase"]
[SourceQuality "1"]
[TimeControl "600+5"]

1. e4 c5 2. Nf3 d6 3. d4 cxd4 4. Nxd4 Nf6 5. Nc3 a6 6. Bc4 e6 7. O-O Be7 8. Bb3 O-O 9. a3 Nc6 10. Nf3 b5 11. h3 Bb7 12. Re1 Qc7 13. Bg5 h6 14. Bh4 Nd7 15. Bg3 Nc5 16. Qe2 Rfd8 17. Rad1 Nxb3 18. cxb3 Na5 19. b4 Nc4 20. Rc1 Qb6 21. Ra1 d5 22. exd5 Bxd5 23. Nxd5 Rxd5 24. b3 Nd6 25. Rad1 Rxd1 26. Rxd1 Nf5 27. Bf4 Rd8 28. Rxd8+ Qxd8 29. Qc2 Qd7 1/2-1/2